bitfinex/quotes_ETHUSD_20220109
["timestamp","ask_amount","ask_price","bid_price","bid_amount"]
[1641748921470,0.0022737,3165.9,3165.3,0.38]
[1641748921671,0.0022737,3165.9,3165.3,1.16978]
[1641748921871,0.00170527,3165.8,3165.6,1.26223868]
[1641748922275,0.00113685,3165.7,3165.6,1.26223868]
[1641748923071,0.00113685,3165.7,3165.6,2.05192868]
[1641748924834,13.8,3165.6,3165.1,1.4215]
[1641748925031,13.8,3165.6,3164.0,0.13819997]
[1641748925032,0.01294512,3165.2,3164.6,0.38]
[1641748925231,0.01294512,3165.2,3164.9,0.00170527]
[1641748925532,0.01294512,3165.2,3164.3,0.00511581]
[1641748925731,1.32711292,3165.1,3164.3,0.00511581]
[1641748928031,0.80310612,3165.2,3164.3,0.00511581]
[1641748928234,0.8690864,3165.3,3164.3,0.00511581]
[1641748928477,1.4690864,3165.3,3164.3,0.00511581]
[1641748928674,2.69110455,3165.1,3164.3,0.00511581]
[1641748929274,2.69110455,3165.1,3164.3,0.16312581]
[1641748929474,0.67899,3165.3,3164.3,0.16312581]
[1641748929475,2.69110455,3165.2,3164.3,0.00511581]
[1641748929675,2.69110455,3165.2,3164.4,0.00454739]
[1641748929975,2.69110455,3165.2,3164.3,0.00511581]
[1641748932323,0.7901421,3165.1,3164.3,0.00511581]
[1641748932726,0.8692,3165.1,3164.3,0.00511581]
[1641748932923,3.51411196,3165.1,3164.3,0.00511581]
[1641748933124,2.1692,3165.1,3164.3,0.00511581]
[1641748933323,1.16190819,3164.7,3164.3,0.00511581]
[1641748933924,3.48125655,3165.0,3164.3,0.00511581]
[1641748934224,2.69110455,3165.0,3164.3,0.00511581]
[1641748934427,1.0,3165.1,3164.3,0.00511581]
[1641748934623,0.3,3165.1,3164.3,0.00511581]
[1641748934824,2.1691012,3165.2,3164.3,0.00511581]
[1641748935026,2.69115277,3165.0,3164.3,0.00511581]
[1641748935224,2.69115277,3165.0,3164.4,0.53801]
[1641748935626,2.69115277,3165.1,3164.5,0.00397896]
[1641748936080,2.69115277,3165.1,3164.7,3.09235318]
[1641748936375,2.69115277,3165.1,3164.8,0.54025369]
[1641748936581,2.69115277,3165.3,3164.8,0.54025369]
[1641748937175,0.00113685,3165.4,3164.8,0.54025369]
[1641748937776,0.00113685,3165.4,3164.9,1.19159231]
[1641748937976,0.00113685,3165.4,3164.9,1.34958231]
[1641748938176,0.00113685,3165.4,3165.0,0.00113684]
[1641748938777,0.00113685,3165.4,3165.1,0.78987]
[1641748938977,0.00113685,3165.4,3165.1,0.94783]
[1641748939179,0.00113685,3165.4,3165.1,1.24783]
[1641748939376,0.00113685,3165.4,3165.2,0.38]
[1641748939734,0.00113685,3165.4,3165.3,0.7898]
[1641748941431,0.00113685,3165.4,3165.1,0.15796]
[1641748941628,0.00113685,3165.4,3165.2,0.38]
[1641748942030,14.1,3165.3,3164.0,0.51819997]
[1641748942231,2.97954723,3165.2,3164.0,0.51819997]
[1641748942430,0.07899,3165.1,3164.1,0.00511582]
[1641748942630,4.05967407,3165.2,3164.1,0.00511582]
[1641748942830,6.75032401,3165.2,3164.1,0.00511582]
[1641748943029,3.77077678,3165.2,3164.1,1.18066486]
[1641748943233,1.51009138,3164.8,3164.1,0.00511582]
[1641748943482,1.51009138,3164.8,3164.3,0.79008]
[1641748943682,1.51009138,3164.8,3164.3,0.9481]
[1641748943884,1.51009138,3164.8,3164.4,0.00341055]
[1641748944079,2.69064994,3165.1,3164.4,0.00341055]
[1641748944381,0.00113684,3165.2,3164.4,0.00341055]
[1641748944681,2.70651271,3165.2,3164.4,0.00341055]
[1641748944879,0.00113684,3165.2,3164.4,0.00341055]
[1641748945081,2.6519134,3165.2,3164.4,0.00341055]
[1641748945279,0.07899,3165.1,3164.3,0.00397897]
[1641748945481,1.50457709,3164.9,3164.3,0.00397897]
[1641748945881,1.50457709,3164.9,3164.3,0.16199897]
[1641748946280,1.50457709,3164.9,3164.4,0.00341055]
[1641748946491,2.69100519,3165.0,3164.4,0.00341055]
[1641748946785,0.08012684,3165.2,3164.3,0.00397897]
[1641748946981,0.00113684,3165.2,3164.3,0.00397897]
[1641748947639,0.00113684,3165.2,3164.4,0.79004]
[1641748948036,0.00113684,3165.2,3164.5,0.00284212]
[1641748948236,0.08012684,3165.2,3164.5,0.00284212]
[1641748948535,2.72115774,3165.2,3164.5,0.00284212]
[1641748948735,1.17091228,3165.1,3164.5,0.00284212]
[1641748948938,1.17091228,3165.1,3164.5,0.00397896]
[1641748949139,0.07899,3165.2,3164.5,0.00397896]
[1641748949734,2.6910309,3165.1,3164.5,0.00397896]
[1641748950336,1.19106811,3165.0,3164.5,0.00397896]
[1641748950739,2.6910309,3165.1,3164.5,0.00397896]
[1641748951176,2.6910309,3165.1,3164.6,0.79002]
[1641748951376,2.6910309,3165.1,3164.5,0.00397896]
[1641748951577,1.07899,3165.3,3164.7,0.00284211]
[1641748951578,2.6910309,3165.2,3164.7,0.00284211]
[1641748951779,2.6910309,3165.2,3164.5,1.17237382]
[1641748951976,2.6910309,3165.2,3164.6,0.158]
[1641748952178,2.6910309,3165.0,3164.6,0.16141054]
[1641748952376,2.6910309,3165.0,3164.7,1.05067543]
[1641748952577,2.6910309,3165.0,3164.7,1.84065543]
[1641748952785,2.6910309,3165.2,3164.8,0.00227369]
[1641748953378,2.6910309,3164.9,3164.8,0.00227369]
[1641748953594,2.6910309,3164.9,3164.8,3.90764757]
[1641748953779,2.6910309,3164.9,3164.8,2.03695369]
[1641748953980,2.6910309,3165.1,3164.8,3.33695369]
[1641748954179,2.6910309,3165.1,3164.9,0.15795]
[1641748954383,2.6910309,3165.1,3164.9,1.15965527]
[1641748954579,2.6910309,3165.1,3165.0,9.03344335]
[1641748954828,0.00113685,3165.4,3165.0,9.03344335]
[1641748955035,0.00113685,3165.4,3165.1,2.57935]
[1641748955427,1.2301309,3166.0,3165.3,13.8]
[1641748955628,2.43768861,3166.4,3165.7,0.78944]
[1641748955828,0.00284212,3165.9,3165.8,2.94022097]
[1641748956027,1.66367995,3166.5,3166.4,1.05742582]
[1641748956028,0.07897,3166.5,3166.4,1.05742582]
[1641748956225,0.07897,3166.5,3166.4,3.29588446]
[1641748956426,0.07897,3166.5,3166.4,1.05742582]
[1641748956631,0.07897,3166.5,3166.4,3.29231075]
[1641748956826,0.08294806,3166.5,3166.4,4.08170075]
[1641748957033,0.08294806,3166.5,3166.4,1.84681582]
[1641748957426,0.08294806,3166.5,3166.4,2.14681582]
[1641748958028,0.08294806,3166.5,3166.4,4.35978995]
[1641748958228,0.07897,3166.5,3166.4,4.35978995]
[1641748958879,0.07897,3166.5,3166.4,1.84681582]
[1641748959481,0.02235666,3166.5,3166.4,1.84681582]
[1641748959688,0.07895,3167.1,3166.4,1.84681582]
[1641748959890,3.7419,3167.3,3166.5,0.07896]
[1641748959891,1.07893,3167.2,3166.5,0.07896]
[1641748960088,0.00682108,3167.1,3166.5,0.07896]
[1641748960483,0.00625265,3167.0,3166.5,0.07896]
[1641748960686,1.3561339,3166.9,3166.4,0.78939]
[1641748960883,1.36181813,3166.9,3166.4,0.78939]
[1641748961084,0.00511581,3166.8,3165.6,0.07893]
[1641748961284,0.07895,3166.7,3165.4,0.15794]
[1641748961487,0.08349738,3166.7,3165.7,0.00113684]
[1641748961684,0.7897992,3166.4,3165.5,0.0022737]
[1641748961882,1.5567196,3166.1,3165.5,0.0022737]
[1641748962082,1.5567196,3166.1,3165.4,0.07898]
[1641748962334,4.38713369,3166.3,3165.3,0.79317054]
[1641748962528,4.30817369,3166.3,3165.5,0.0022737]
[1641748962728,0.00170527,3166.2,3165.4,0.00284212]
[1641748962930,0.00170527,3166.2,3165.6,0.78973]
[1641748963128,0.00113684,3166.1,3165.4,0.00284212]
[1641748963328,0.00113684,3166.1,3165.7,0.00113685]
[1641748963529,0.00113684,3166.1,3165.5,0.07898]
[1641748963929,0.00113684,3166.1,3165.7,0.78971]
[1641748964328,0.00113684,3166.1,3165.6,0.00170527]
[1641748965330,0.00113684,3166.1,3165.7,1.17303499]
[1641748965532,0.00113684,3166.1,3165.7,1.96274499]
[1641748966180,0.00113684,3166.1,3165.7,1.17303499]
[1641748966785,0.00113684,3166.1,3165.7,1.96269499]
[1641748967182,0.00113684,3166.1,3165.7,1.96275499]
[1641748967587,0.00113684,3166.1,3165.8,0.07897]
[1641748968885,0.00113684,3166.1,3165.9,0.78968]
[1641748970244,0.00113684,3166.1,3166.0,1.57916]
[1641748971440,0.00113684,3166.1,3166.0,2.86033421]
[1641748972043,0.00113684,3166.1,3166.0,1.57916]
[1641748973681,0.00113684,3166.1,3165.8,0.07897]
[1641748973883,0.00113684,3166.1,3165.6,2.03604527]
[1641748974083,0.00113684,3166.1,3165.6,2.33604527]
[1641748974285,5.4,3166.0,3165.6,1.83047685]
[1641748974484,0.00113684,3166.1,3165.6,1.83047685]
[1641748974687,0.00113685,3165.9,3165.6,1.57934]
[1641748974884,0.00170527,3166.0,3165.6,1.57934]
[1641748975085,0.00170527,3166.0,3165.5,0.07898]
[1641748975284,0.00113685,3165.9,3165.5,0.07898]
[1641748975488,0.00113685,3165.9,3165.6,0.78975]
[1641748975685,0.00170527,3166.0,3165.7,0.07897]
[1641748975885,0.00170527,3166.0,3165.8,0.9475073]
[1641748976086,0.00113685,3165.9,3165.8,1.2475073]
[1641748976285,0.00113685,3165.9,3165.8,6.2475073]
[1641748976488,0.00113685,3165.9,3165.8,4.03364246]
[1641748976687,0.00113685,3165.9,3165.8,5.25815842]
[1641748977727,0.00113685,3165.9,3165.8,6.83725842]
[1641748977929,0.00113685,3165.9,3165.8,6.14072326]
[1641748979630,0.00113685,3165.9,3165.8,6.26967998]
[1641748980028,0.00113685,3165.9,3165.8,4.54072326]
[1641748980230,0.00113685,3165.9,3165.8,5.14072326]
[1641748980530,0.00113685,3165.9,3165.8,6.14072326]
[1641748981180,0.00113685,3165.9,3165.8,7.33539344]
[1641748981681,0.00113685,3165.9,3165.8,5.75629344]
[1641748981882,0.00113685,3165.9,3165.8,8.02812811]
[1641748983483,0.00113685,3165.9,3165.8,7.98740746]
[1641748983685,0.00113685,3165.9,3165.8,5.75629344]
[1641748984186,0.00113685,3165.9,3165.8,3.56162326]
[1641748984584,0.00113685,3165.9,3165.8,4.56162326]
[1641748985833,0.00113685,3165.9,3165.8,6.04277904]
[1641748986231,0.00113685,3165.9,3165.8,8.2753321]
[1641748987036,0.00113685,3165.9,3165.8,8.29607758]
[1641748987235,0.00113685,3165.9,3165.8,6.49777904]
[1641748987431,0.00383234,3166.5,3166.1,0.78943]
[1641748987633,0.00383234,3166.5,3166.1,2.9811586]
[1641748987831,0.00284211,3166.4,3166.2,0.37895]
[1641748988032,0.00284211,3166.4,3166.3,3.22250779]
[1641748988230,0.00383234,3166.5,3166.3,0.455]
[1641748989076,0.00383234,3166.5,3166.3,1.24438]
[1641748989277,0.00383234,3166.5,3166.3,2.0338576]
[1641748989477,0.00383234,3166.5,3166.3,3.3338576]
[1641748989777,0.00383234,3166.5,3166.4,0.3]
[1641748989977,0.00383234,3166.5,3166.4,8.355]
[1641748990179,0.00724288,3166.5,3166.4,1.755]
[1641748990879,0.00724288,3166.5,3166.4,3.03195056]
[1641748991779,0.00724288,3166.5,3166.4,1.73195056]
[1641748993635,0.00724288,3166.5,3166.4,2.03195056]
[1641748998679,0.00724288,3166.5,3166.4,3.03195056]
[1641749001532,4.27504288,3167.0,3166.4,3.03195056]
[1641749001733,4.27504288,3167.0,3166.7,0.78948]
[1641749001930,4.27504288,3167.0,3166.7,1.24448]
[1641749001931,0.00227369,3166.9,3166.7,1.24448]
[1641749002328,0.00170527,3166.8,3166.7,1.24448]
[1641749003129,0.00170527,3166.8,3166.7,1.40237]
[1641749003329,8.80170527,3166.8,3166.7,1.40237]
[1641749003585,8.80170527,3166.8,3165.9,0.455]
[1641749003783,8.80170527,3166.8,3166.1,0.78964]
[1641749003984,0.00113684,3166.7,3166.1,0.78964]
[1641749004184,1.37113448,3166.4,3166.1,0.78964]
[1641749004585,0.00113684,3166.7,3166.1,0.78964]
[1641749004784,0.00113684,3166.7,3166.0,0.00284212]
[1641749004984,0.00113684,3166.7,3166.1,0.07897]
[1641749005384,0.00113684,3166.7,3166.2,0.00170527]
[1641749006386,2.69062186,3166.7,3166.2,0.00170527]
[1641749006786,1.19689784,3166.3,3166.2,0.79133527]
[1641749007090,2.69062186,3166.7,3166.2,0.79133527]
[1641749007328,2.69062186,3166.7,3166.2,0.87030527]
[1641749007528,2.69062186,3166.7,3166.3,0.00113685]
[1641749008533,1.20095687,3166.5,3166.3,0.00113685]
[1641749009332,1.20095687,3166.5,3166.3,0.79072685]
[1641749011186,0.00113684,3166.7,3166.3,0.79072685]
[1641749013385,1.40291627,3166.5,3166.3,0.86968685]
[1641749013585,0.00113684,3166.7,3166.3,0.08009685]
[1641749013784,0.00113684,3166.7,3166.4,0.78957]
[1641749014590,1.2120658,3166.6,3166.4,0.78957]
[1641749015441,0.00113684,3166.7,3166.4,0.78957]
[1641749016440,0.00113684,3166.7,3166.6,0.78954]
[1641749017644,0.00113684,3166.7,3166.5,0.07896]
[1641749017841,0.00113684,3166.7,3166.4,1.65792]
[1641749018040,0.00113684,3166.7,3166.4,1.57899]
[1641749018241,0.00113684,3166.7,3166.3,0.00113685]
[1641749019288,1.3785675,3166.6,3166.3,0.00113685]
[1641749019788,2.57257628,3166.5,3166.2,0.00170527]
[1641749020190,2.57257628,3166.5,3165.9,0.00341054]
[1641749020388,5.34105422,3166.5,3165.5,0.07898]
[1641749020586,5.34105422,3166.5,3165.4,0.00625266]
[1641749020587,1.17781602,3165.7,3165.4,0.00625266]
[1641749020788,1.17781602,3165.7,3165.6,0.00511581]
[1641749020985,1.17781602,3165.7,3165.4,0.00625266]
[1641749021688,1.17781602,3165.7,3165.5,1.57946]
[1641749021889,1.17781602,3165.7,3165.4,0.08524266]
[1641749022240,1.17781602,3165.7,3165.5,0.00568424]
[1641749023132,1.17781602,3165.7,3165.4,0.00625266]
[1641749023935,4.0971,3166.2,3165.4,0.00625266]
[1641749024135,4.0971,3166.2,3165.5,0.07896]
[1641749024534,4.0971,3166.2,3165.6,0.00511581]
[1641749024735,4.0971,3166.2,3165.7,0.07896]
[1641749024935,1.12913988,3166.0,3165.7,0.07896]
[1641749025136,1.12913988,3166.0,3165.8,0.00397897]
[1641749025338,1.12913988,3166.0,3165.8,0.95154897]
[1641749025534,4.0971,3166.2,3165.9,0.07897]
[1641749025735,4.0971,3166.2,3165.9,0.87203054]
[1641749026387,4.0971,3166.2,3165.9,1.66168054]
[1641749026582,4.0971,3166.2,3165.9,0.87203054]
[1641749026981,1.45660488,3166.4,3165.9,0.87203054]
[1641749027182,1.45660488,3166.4,3166.0,0.7896]
[1641749027382,1.45660488,3166.4,3166.0,0.86857]
[1641749027582,1.45660488,3166.4,3166.1,0.0022737]
[1641749028582,1.45660488,3166.4,3165.9,0.00341054]
[1641749028783,1.45660488,3166.4,3165.9,0.08239054]
[1641749028985,2.6897243,3166.3,3165.9,0.08239054]
[1641749029834,2.6897243,3166.3,3165.9,0.87210054]
[1641749030234,2.6897243,3166.3,3165.9,0.00341054]
[1641749030636,2.6897243,3166.3,3165.7,0.00454739]
[1641749031334,2.6897243,3166.3,3165.4,0.00625266]
[1641749031335,2.7686843,3166.3,3165.4,0.00625266]
[1641749031534,1.0,3166.2,3165.4,0.00625266]
[1641749031734,0.07896,3166.1,3165.4,0.00625266]
[1641749032133,0.07896,3166.1,3165.3,0.00682108]
[1641749032533,2.6897243,3166.0,3165.3,0.00682108]
[1641749032938,1.07896,3165.9,3165.3,0.00682108]
[1641749033238,1.37896,3165.9,3165.0,0.00852635]
[1641749033682,2.16898,3165.9,3165.0,0.00852635]
[1641749033884,1.10627751,3165.5,3165.0,0.00852635]
[1641749034080,1.18524751,3165.5,3165.0,0.00852635]
[1641749035887,1.18524751,3165.5,3164.9,5.19352635]
[1641749036083,0.00227369,3165.4,3164.9,5.19352635]
[1641749036484,0.00170527,3165.3,3164.9,5.11452635]
[1641749036885,0.00113684,3165.2,3164.9,5.11452635]
[1641749037341,0.00170527,3165.3,3164.9,5.11452635]
[1641749037544,0.07897,3165.2,3164.5,0.07897]
[1641749037738,0.7901819,3164.9,3164.5,7e-05]
[1641749037938,0.07899,3164.8,3164.6,0.0022737]
[1641749038542,3.9897,3165.1,3164.6,0.0022737]
[1641749038738,3.9897,3165.1,3164.6,0.079]
[1641749038938,0.00113684,3165.2,3164.6,0.079]
[1641749039140,0.00113684,3165.2,3164.7,0.00170527]
[1641749039740,0.00113684,3165.2,3164.3,3.48474331]
[1641749039948,0.07899,3165.5,3164.4,0.07901]
[1641749039949,0.00397897,3165.1,3164.4,0.07901]
[1641749040439,0.00341055,3165.0,3164.4,0.07901]
[1641749040839,0.00284212,3164.9,3164.5,0.79002]
[1641749041083,0.00284212,3164.9,3164.8,1.33947416]
[1641749041282,7.8666,3165.6,3164.8,1.63947416]
[1641749041484,0.00284212,3164.9,3164.8,1.63947416]
[1641749041680,0.00284212,3164.9,3164.8,1.93947416]
[1641749041881,0.00284212,3164.9,3164.8,6.88947416]
[1641749042182,0.00284212,3164.9,3164.8,7.88947416]
[1641749042381,0.00284212,3164.9,3164.8,2.93947416]
[1641749042781,7.8666,3165.6,3164.8,2.93947416]
[1641749042983,7.8666,3165.6,3164.8,4.51917416]
[1641749043182,0.00341054,3165.5,3165.1,0.07899]
[1641749043587,0.00284212,3165.4,3165.3,5.98430346]
[1641749043785,0.00284212,3165.4,3165.3,10.59003257]
[1641749043986,0.00284212,3165.4,3165.3,11.19003257]
[1641749044184,0.00284212,3165.4,3165.3,6.49003257]
[1641749044584,0.00284212,3165.4,3165.3,8.06940257]
[1641749045438,0.00284212,3165.4,3165.3,9.36389491]
[1641749046641,0.00284212,3165.4,3165.3,9.32006391]
[1641749047442,0.00284212,3165.4,3165.3,9.39904391]
[1641749048488,0.08294806,3166.0,3165.7,0.78952]
[1641749048687,0.08294806,3166.0,3165.8,0.53396]
[1641749048889,1.58092837,3166.5,3165.9,7.65]
[1641749049087,4.1378,3166.8,3166.0,0.53395]
[1641749049287,4.1378,3166.8,3166.1,1.25534455]
[1641749049288,0.00284211,3166.4,3166.1,1.25534455]
[1641749049490,0.00284211,3166.4,3166.2,0.455]
[1641749049688,0.00227369,3166.3,3166.2,0.455]
[1641749049888,0.00227369,3166.3,3166.2,0.755]
[1641749050090,0.00227369,3166.3,3166.2,1.54442]
[1641749050488,0.00227369,3166.3,3166.2,3.75767201]
[1641749050789,0.00227369,3166.3,3166.2,4.75767201]
[1641749050993,0.00227369,3166.3,3166.2,5.88562092]
[1641749051395,4.3888,3167.3,3166.3,13.83713876]
[1641749051592,4.3888,3167.3,3166.8,1.5784]
[1641749051789,4.39448424,3167.3,3166.8,0.7892]
[1641749051990,0.00568424,3167.3,3166.8,2.3892]
[1641749052251,0.00568424,3167.3,3166.8,5.89563435]
[1641749052433,1.58037857,3167.6,3167.0,1.35873741]
[1641749052434,1.53606281,3167.6,3167.0,1.35873741]
[1641749052636,1.53606281,3167.6,3167.3,0.78916]
[1641749052835,0.00113684,3167.5,3167.3,0.78916]
[1641749053035,0.00113684,3167.5,3167.3,0.3]
[1641749053235,0.00113684,3167.5,3167.1,0.07893]
[1641749053436,0.00113684,3167.5,3166.9,0.0022737]
[1641749053734,0.00113684,3167.5,3167.0,0.78938]
[1641749054136,1.28044921,3167.4,3167.1,0.00113685]
[1641749054736,0.00113684,3167.5,3167.1,0.00113685]
[1641749055038,2.69002316,3167.5,3167.0,0.30170528]
[1641749055236,2.69002316,3167.5,3167.0,0.00170528]
[1641749055436,2.69002316,3167.5,3167.1,0.00113685]
[1641749055637,2.69002316,3167.5,3167.2,0.455]
[1641749055838,0.00113684,3167.5,3167.2,2.66123723]
[1641749056081,0.00113684,3167.5,3167.3,1.21081526]
[1641749056281,0.00113684,3167.5,3167.3,1.36865526]
[1641749056685,1.20075308,3168.3,3167.8,9.75]
[1641749056884,1.20075308,3168.3,3167.9,0.455]
[1641749057086,4.01298477,3168.4,3168.1,10.6]
[1641749057283,4.01298477,3168.4,3168.2,0.755]
[1641749057486,4.01298477,3168.5,3168.3,5.85]
[1641749057785,4.01298477,3168.5,3168.4,0.755]
[1641749057987,4.01298477,3168.5,3168.4,1.055]
[1641749058184,4.01412162,3168.5,3168.4,1.84395]
[1641749058588,0.00113685,3168.5,3168.4,1.84395]
[1641749058784,0.00113685,3168.5,3168.4,2.6327569]
[1641749058989,0.00113685,3168.5,3168.4,4.9173007]
[1641749059284,0.00113685,3168.5,3168.4,5.9173007]
[1641749059483,0.00113685,3168.5,3168.4,7.03180783]
[1641749059743,0.00113685,3168.5,3168.4,6.98180783]
[1641749059934,0.00113685,3168.5,3168.4,3.5827569]
[1641749060134,0.00113685,3168.5,3168.4,2.79395]
[1641749060537,0.00113685,3168.5,3168.4,5.02786651]
[1641749061335,0.00113685,3168.5,3168.4,4.56669151]
[1641749061537,0.00113685,3168.5,3168.4,5.07786651]
[1641749061734,0.0039338,3169.1,3168.5,12.85]
[1641749061933,0.0039338,3169.1,3168.4,5.07786651]
[1641749061934,0.0039338,3169.1,3168.8,1.57742]
[1641749062135,0.00284211,3169.0,3168.9,2.25343045]
[1641749062337,0.00284211,3169.0,3168.8,0.3]
[1641749062535,0.00284211,3169.0,3168.7,1.8774]
[1641749062734,0.00227369,3168.9,3168.7,0.3]
[1641749062934,0.00227369,3168.9,3168.6,1.08889]
[1641749063234,0.94772168,3169.5,3168.4,0.455]
[1641749063235,1.50338109,3168.8,3168.4,1.755]
[1641749063485,1.50338109,3168.8,3168.4,1.83388]
[1641749063687,0.00113684,3168.7,3168.4,0.83388]
[1641749063887,0.00113684,3168.7,3168.4,0.455]
[1641749064096,0.00113684,3168.7,3168.0,1.57777]
[1641749064097,0.00113684,3168.7,3168.0,0.455]
[1641749064287,2.72985069,3168.7,3167.7,0.91195264]
[1641749064488,7.05011963,3168.7,3168.1,0.0022737]
[1641749064687,1.0,3168.6,3167.8,0.00397897]
[1641749064888,4.36433684,3168.7,3167.8,0.00397897]
[1641749065789,4.36433684,3168.7,3167.8,0.79308897]
[1641749066190,4.36433684,3168.7,3167.9,0.00341054]
[1641749067432,4.36433684,3168.7,3167.8,0.79306897]
[1641749067632,4.36433684,3168.7,3167.9,0.00341054]
[1641749068434,2.73449774,3168.6,3167.9,0.00341054]
[1641749068636,1.7893112,3168.5,3167.9,0.00341054]
[1641749068834,1.7893112,3168.5,3167.8,0.00397897]
[1641749068835,3.04640696,3168.4,3167.8,0.00397897]
[1641749069033,1.0,3168.3,3167.8,0.00397897]
[1641749069434,0.07889,3168.4,3167.7,0.90582043]
[1641749069735,0.00284212,3168.3,3167.7,0.90582043]
[1641749070235,0.0022737,3168.2,3167.7,0.90582043]
[1641749070634,0.00170527,3168.1,3167.7,0.90582043]
[1641749071084,0.00113685,3168.0,3167.7,0.90582043]
[1641749071483,0.00284212,3168.3,3167.7,0.90582043]
[1641749071683,0.00284212,3168.3,3167.8,0.0789]
[1641749071890,0.0022737,3168.2,3167.8,0.0789]
[1641749072284,4.3632,3168.7,3167.8,0.86801]
[1641749072285,0.00170527,3168.1,3167.8,0.86801]
[1641749072683,5.53948279,3168.7,3167.8,0.0789]
[1641749072684,0.00113685,3168.0,3167.8,0.0789]
[1641749072883,0.00113685,3168.0,3167.7,0.90582043]
[1641749073083,0.00454739,3168.6,3167.7,0.90582043]
[1641749073486,0.00397897,3168.5,3167.7,0.90582043]
[1641749073895,0.00341054,3168.4,3167.7,0.90582043]
[1641749074287,0.00284212,3168.3,3167.7,1.20582043]
[1641749074755,0.0022737,3168.2,3167.7,1.20582043]
[1641749074944,0.0022737,3168.2,3167.7,1.99495043]
[1641749075146,0.00170527,3168.1,3167.7,1.99495043]
[1641749075543,4.3632,3168.7,3167.7,1.99495043]
[1641749075544,0.00113685,3168.0,3167.7,1.99495043]
[1641749075943,4.3632,3168.7,3167.7,1.20582043]
[1641749075944,0.00454739,3168.6,3167.7,1.20582043]
[1641749076344,0.00397897,3168.5,3167.7,1.20582043]
[1641749076746,0.00454739,3168.6,3167.7,1.20582043]
[1641749076947,0.00341054,3168.4,3167.7,1.20582043]
[1641749077149,0.00397897,3168.5,3167.7,0.90582043]
[1641749077345,0.00284212,3168.3,3167.7,0.90582043]
[1641749077545,0.00341054,3168.4,3167.7,0.90582043]
[1641749077746,0.0022737,3168.2,3167.7,0.90582043]
[1641749077945,0.00284212,3168.3,3167.7,0.90582043]
[1641749078145,0.00170527,3168.1,3167.7,0.90582043]
[1641749078345,0.0022737,3168.2,3167.7,0.90582043]
[1641749078585,4.33847479,3168.6,3167.7,0.90582043]
[1641749078586,0.00113685,3168.0,3167.7,0.90582043]
[1641749078787,0.00170527,3168.1,3167.7,0.90582043]
[1641749078986,0.7892942,3168.4,3167.7,0.90582043]
[1641749079186,0.00113685,3168.0,3167.7,0.90582043]
[1641749079387,0.00284212,3168.3,3167.7,0.90582043]
[1641749079791,0.0022737,3168.2,3167.7,0.90582043]
[1641749080188,1.6789,3168.6,3167.7,0.90582043]
[1641749080189,0.00170527,3168.1,3167.7,0.90582043]
[1641749080488,0.00113685,3168.0,3167.7,0.90582043]
[1641749080890,0.00397897,3168.5,3167.7,0.90582043]
[1641749081391,0.00341054,3168.4,3167.7,0.90582043]
[1641749081789,0.00284212,3168.3,3167.7,0.90582043]
[1641749082243,0.0022737,3168.2,3167.7,0.90582043]
[1641749082438,0.0022737,3168.2,3167.7,1.20582043]
[1641749082735,0.00170527,3168.1,3167.7,1.20582043]
[1641749082934,0.00170527,3168.1,3167.8,0.78913]
[1641749083135,0.00113685,3168.0,3167.8,1.9083282]
[1641749083534,0.00454739,3168.6,3167.8,1.9083282]
[1641749083740,0.00454739,3168.6,3167.9,0.07889]
[1641749083935,0.00397897,3168.5,3167.9,0.07889]
[1641749084335,0.00341054,3168.4,3167.9,0.07889]
[1641749084736,4.3632,3168.7,3167.9,0.07889]
[1641749084737,0.00284212,3168.3,3167.9,0.07889]
[1641749085139,0.0022737,3168.2,3167.9,0.07889]
[1641749085336,4.05162597,3168.7,3167.9,0.07889]
[1641749085536,4.05162597,3168.7,3168.0,0.00113685]
[1641749085736,0.00227369,3168.6,3168.0,0.00113685]
[1641749085982,0.00227369,3168.6,3167.9,0.08059527]
[1641749086185,0.00170527,3168.5,3167.9,0.08059527]
[1641749086385,0.00170527,3168.5,3167.9,0.00170527]
[1641749086586,0.00113684,3168.4,3167.9,0.00170527]
[1641749088087,0.00113684,3168.4,3167.8,0.0022737]
[1641749088687,0.00113684,3168.4,3168.0,1.33001138]
[1641749088888,0.00113684,3168.4,3168.0,0.3]
[1641749089288,0.00113684,3168.4,3167.9,0.3789]
[1641749089486,0.00113684,3168.4,3167.9,0.0789]
[1641749090136,0.00113684,3168.4,3168.0,0.78905]
[1641749090340,0.00113684,3168.4,3168.0,1.08905]
[1641749090538,0.00113684,3168.4,3168.1,0.78908]
[1641749091138,0.00113684,3168.4,3168.1,1.57811]
[1641749091435,0.00113684,3168.4,3168.2,0.37889]
[1641749093506,0.00113684,3168.4,3168.2,0.07889]
[1641749094585,0.00113684,3168.4,3167.8,2.1143537]
[1641749094785,0.00113684,3168.4,3167.8,2.4143537]
[1641749094986,0.00113684,3168.4,3167.9,0.00170527]
[1641749095990,2.62610552,3168.4,3167.9,0.00170527]
[1641749096286,0.00113684,3168.4,3167.8,0.0022737]
[1641749097236,2.6890312,3168.4,3167.8,0.0022737]
[1641749098936,2.6890312,3168.4,3167.8,0.7914737]
[1641749099338,2.6890312,3168.4,3167.9,0.00170527]
[1641749099837,0.00113684,3168.4,3167.9,0.00170527]
[1641749100839,0.00113684,3168.4,3167.9,0.79085527]
[1641749102387,2.6890312,3168.4,3167.9,0.79085527]
[1641749103290,0.00113684,3168.4,3167.9,0.00170527]
[1641749103687,0.00113684,3168.4,3167.8,0.0022737]
[1641749104387,2.68789436,3168.3,3167.8,0.0022737]
[1641749104589,2.68789436,3168.3,3167.9,0.0789]
[1641749105342,0.7892799,3168.3,3167.8,0.0022737]
[1641749105643,0.82692043,3167.7,3166.4,0.84599968]
[1641749105846,3.9701,3167.6,3166.9,0.7894]
[1641749106042,3.9701,3167.6,3167.0,0.07892]
[1641749106242,3.9701,3167.6,3166.5,0.07892]
[1641749106442,3.9701,3167.6,3167.1,0.00397896]
[1641749106643,6.65799436,3167.6,3166.6,0.00682108]
[1641749106846,0.78966,3167.1,3166.6,0.00682108]
[1641749107044,1.35788179,3167.0,3166.6,0.00682108]
[1641749107443,0.07893,3167.3,3166.6,0.00682108]
[1641749107642,0.07893,3167.4,3166.6,0.00682108]
[1641749107842,0.7895834,3167.2,3166.6,0.00682108]
[1641749108045,2.68789436,3167.0,3166.6,0.00682108]
[1641749108346,1.51517464,3166.9,3166.6,0.00682108]
[1641749108588,4.16175951,3166.9,3166.6,0.00682108]
[1641749108787,2.64599831,3166.8,3166.6,0.00682108]
[1641749109087,2.30481114,3166.9,3165.9,0.01080004]
[1641749109287,1.51517464,3166.9,3165.9,0.01080004]
[1641749109686,1.51517464,3166.9,3166.0,0.07895]
[1641749109687,2.68789436,3166.7,3166.0,0.07895]
[1641749110086,2.68789436,3166.7,3166.1,0.0096632]